Workbook

Sheet 1、全市公共预算收入
A1: 附表1
A2: 全市2019年地方一般公共预算收入执行情况表
C3: 单位：万元
A4: 科目编码 | B4: 科目名称 | C4: 金额
B5: 一般公共预算收入 | C5: =C6+C23 -> 491012
A6: 101 | B6: （一）税收收入 | C6: =SUM(C7:C22) -> 376709
A7: 10101 | B7: 增值税 | C7: 160422
A8: 10103 | B8: 营业税
A9: 10104 | B9: 企业所得税 | C9: 40046
A10: 10106 | B10: 个人所得税 | C10: 11997
A11: 10107 | B11: 资源税 | C11: 9881
A12: 10109 | B12: 城市维护建设税 | C12: 28598
A13: 10110 | B13: 房产税 | C13: 9478
A14: 10111 | B14: 印花税 | C14: 4158
A15: 10112 | B15: 城镇土地使用税 | C15: 9105
A16: 10113 | B16: 土地增值税 | C16: 33167
A17: 10114 | B17: 车船税 | C17: 6776
A18: 10118 | B18: 耕地占用税 | C18: 33387
A19: 10119 | B19: 契税 | C19: 28886
A20: 10120 | B20: 烟叶税
A21: 10121 | B21: 环境保护税 | C21: 763
A22: 10199 | B22: 其他税收收入 | C22: 45
A23: 103 | B23: （二）非税收入 | C23: =SUM(C24:C31) -> 114303
A24: 10302 | B24: 专项收入 | C24: 22056
A25: 10304 | B25: 行政事业性收费收入 | C25: 35039
A26: 10305 | B26: 罚没收入 | C26: 24469
A27: 10306 | B27: 国有资本经营收入
A28: 10307 | B28: 国有资源（资产）有偿使用收入 | C28: 28818
A29: 10308 | B29: 捐赠收入 | C29: 550
A30: 10309 | B30: 政府住房基金收入 | C30: 2605
A31: 10399 | B31: 其他收入 | C31: 766

Sheet 2、全市公共预算支出
A1: 附表2
A2: 全市2019年一般公共预算支出执行情况表
C3: 单位：万元
A4: 科目编码 | B4: 科目名称 | C4: 金额
A5: 201 | B5: 一、一般公共服务支出 | C5: 201091
A6: 202 | B6: 二、国防支出 | C6: 1145
A7: 204 | B7: 二、公共安全支出 | C7: 59542
A8: 205 | B8: 三、教育支出 | C8: 243904
A9: 206 | B9: 四、科学技术支出 | C9: 16211
A10: 207 | B10: 五、文化旅游体育与传媒支出 | C10: 15626
A11: 208 | B11: 六、社会保障和就业支出 | C11: 287591
A12: 210 | B12: 七、卫生健康支出 | C12: 172009
A13: 211 | B13: 八、节能环保支出 | C13: 47840
A14: 212 | B14: 九、城乡社区支出 | C14: 90414
A15: 213 | B15: 十、农林水支出 | C15: 200271
A16: 214 | B16: 十一、交通运输支出 | C16: 79218
A17: 215 | B17: 十二、资源勘探信息等支出 | C17: 36230
A18: 216 | B18: 十三、商业服务业等支出 | C18: 3533
A19: 217 | B19: 十四、金融支出 | C19: 0
A20: 219 | B20: 十五、援助其他地区支出 | C20: 506
A21: 220 | B21: 十六、自然资源海洋气象等支出 | C21: 19494
A22: 221 | B22: 十七、住房保障支出 | C22: 53617
A23: 222 | B23: 十八、粮油物资储备支出 | C23: 9007
A24: 223 | B24: 十九、灾害防治及应急管理支出 | C24: 10641
A25: 227 | B25: 二十、预备费
A26: 229 | B26: 二十一、其他支出 | C26: 2873
A27: 232 | B27: 二十二、债务付息支出 | C27: 28094
A28: 233 | B28: 二十三、债务发行费用支出 | C28: 179
C29: 0
B30: 支 出 合 计 | C30: =SUM(C5:C29) -> 1579036

Sheet 3、本级公共预算收入
A1: 附表3
A2: 市本级2019年地方一般公共预算收入执行情况表
C3: 单位：万元
A4: 科目编码 | B4: 科目名称 | C4: 金额
B5: 一般预算收入合计 | C5: =C6+C23 -> 103704
A6: 101 | B6: （一）税收收入 | C6: =SUM(C7:C22) -> 72722
A7: 10101 | B7: 增值税 | C7: 23029
A8: 10103 | B8: 营业税
A9: 10104 | B9: 企业所得税 | C9: 11402
A10: 10106 | B10: 个人所得税 | C10: 3242
A11: 10107 | B11: 资源税
A12: 10109 | B12: 城市维护建设税 | C12: 5083
A13: 10110 | B13: 房产税 | C13: 2390
A14: 10111 | B14: 印花税 | C14: 943
A15: 10112 | B15: 城镇土地使用税 | C15: 1042
A16: 10113 | B16: 土地增值税 | C16: 11312
A17: 10114 | B17: 车船税 | C17: 4051
A18: 10118 | B18: 耕地占用税 | C18: 5820
A19: 10119 | B19: 契税 | C19: 4329
A20: 10120 | B20: 烟叶税
A21: 10121 | B21: 环境保护税 | C21: 34
A22: 10199 | B22: 其他税收收入 | C22: 45
A23: 103 | B23: （二）非税收入 | C23: =SUM(C24:C31) -> 30982
A24: 10302 | B24: 专项收入 | C24: 5141
A25: 10304 | B25: 行政事业性收费收入 | C25: 7633
A26: 10305 | B26: 罚没收入 | C26: 7305
A27: 10306 | B27: 国有资本经营收入
A28: 10307 | B28: 国有资源（资产）有偿使用收入 | C28: 8027
A29: 10308 | B29: 捐赠收入 | C29: 2
A30: 10309 | B30: 政府住房基金收入 | C30: 2128
A31: 10399 | B31: 其他收入 | C31: 746

Sheet 4、本级公共预算支出
A1: 附表4
A2: 市本级2019年一般公共预算支出执行情况表
C3: 单位：万元
A4: 科目编码 | B4: 科目名称 | C4: 金额
B5: 市本级一般公共预算支出合计 | C5: 270020
A6: 201 | B6: 一般公共服务支出 | C6: 37749
A7: 20101 | B7: 人大事务 | C7: 1169
A8: 2010101 | B8: 行政运行 | C8: 832
A9: 2010102 | B9: 一般行政管理事务 | C9: 137
A10: 2010104 | B10: 人大会议 | C10: 86
A11: 2010105 | B11: 人大立法 | C11: 5
A12: 2010106 | B12: 人大监督 | C12: 44
A13: 2010108 | B13: 代表工作 | C13: 66
A14: 20102 | B14: 政协事务 | C14: 1086
A15: 2010201 | B15: 行政运行 | C15: 769
A16: 2010202 | B16: 一般行政管理事务 | C16: 88
A17: 2010204 | B17: 政协会议 | C17: 118
A18: 2010205 | B18: 委员视察 | C18: 51
A19: 2010206 | B19: 参政议政 | C19: 60
A20: 20103 | B20: 政府办公厅（室）及相关机构事务 | C20: 6076
A21: 2010301 | B21: 行政运行 | C21: 1364
A22: 2010302 | B22: 一般行政管理事务 | C22: 153
A23: 2010303 | B23: 机关服务 | C23: 937
A24: 2010304 | B24: 专项服务 | C24: 442
A25: 2010305 | B25: 专项业务活动 | C25: 339
A26: 2010306 | B26: 政务公开审批 | C26: 835
A27: 2010308 | B27: 信访事务 | C27: 407
A28: 2010350 | B28: 事业运行 | C28: 303
A29: 2010399 | B29: 其他政府办公厅（室）及相关机构事务支出 | C29: 1297
A30: 20104 | B30: 发展与改革事务 | C30: 1269
A31: 2010401 | B31: 行政运行 | C31: 741
A32: 2010402 | B32: 一般行政管理事务 | C32: 90
A33: 2010404 | B33: 战略规划与实施 | C33: 60
A34: 2010408 | B34: 物价管理 | C34: 315
A35: 2010450 | B35: 事业运行 | C35: 24
A36: 2010499 | B36: 其他发展与改革事务支出 | C36: 40
A37: 20105 | B37: 统计信息事务 | C37: 699
A38: 2010501 | B38: 行政运行 | C38: 440
A39: 2010505 | B39: 专项统计业务 | C39: 132
A40: 2010506 | B40: 统计管理 | C40: 85
A41: 2010507 | B41: 专项普查活动 | C41: 40
A42: 2010550 | B42: 事业运行 | C42: 2
A43: 20106 | B43: 财政事务 | C43: 1806
A44: 2010601 | B44: 行政运行 | C44: 1421
A45: 2010602 | B45: 一般行政管理事务 | C45: 14
A46: 2010604 | B46: 预算改革业务 | C46: 62
A47: 2010605 | B47: 财政国库业务 | C47: 70
A48: 2010607 | B48: 信息化建设 | C48: 87
A49: 2010608 | B49: 财政委托业务支出 | C49: 67
A50: 2010650 | B50: 事业运行 | C50: 6
A51: 2010699 | B51: 其他财政事务支出 | C51: 78
A52: 20107 | B52: 税收事务 | C52: 4000
A53: 2010799 | B53: 其他税收事务支出 | C53: 4000
A54: 20108 | B54: 审计事务 | C54: 1033
A55: 2010801 | B55: 行政运行 | C55: 596
A56: 2010806 | B56: 信息化建设 | C56: 15
A57: 2010899 | B57: 其他审计事务支出 | C57: 422
A58: 20109 | B58: 海关事务 | C58: 300
A59: 2010901 | B59: 行政运行 | C59: 300
A60: 20110 | B60: 人力资源事务 | C60: 895
A61: 2011001 | B61: 行政运行 | C61: 147
A62: 2011008 | B62: 引进人才费用 | C62: 672
A63: 2011099 | B63: 其他人力资源事务支出 | C63: 77
A64: 20111 | B64: 纪检监察事务 | C64: 7193
A65: 2011101 | B65: 行政运行 | C65: 2117
A66: 2011102 | B66: 一般行政管理事务 | C66: 2422
A67: 2011104 | B67: 大案要案查处 | C67: 1700
A68: 2011105 | B68: 派驻派出机构 | C68: 170
A69: 2011199 | B69: 其他纪检监察事务支出 | C69: 784
A70: 20113 | B70: 商贸事务 | C70: 744
A71: 2011301 | B71: 行政运行 | C71: 1
A72: 2011308 | B72: 招商引资 | C72: 358
A73: 2011399 | B73: 其他商贸事务支出 | C73: 384
A74: 20114 | B74: 知识产权事务 | C74: 93
A75: 2011499 | B75: 其他知识产权事务支出 | C75: 93
A76: 20123 | B76: 民族事务 | C76: 76
A77: 2012301 | B77: 行政运行 | C77: 57
A78: 2012399 | B78: 其他民族事务支出 | C78: 19
A79: 20125 | B79: 港澳台事务 | C79: 81
A80: 2012501 | B80: 行政运行 | C80: 31
A81: 2012505 | B81: 台湾事务 | C81: 50
A82: 20126 | B82: 档案事务 | C82: 367
A83: 2012601 | B83: 行政运行 | C83: 240
A84: 2012699 | B84: 其他档案事务支出 | C84: 127
A85: 20128 | B85: 民主党派及工商联事务 | C85: 175
A86: 2012801 | B86: 行政运行 | C86: 94
A87: 2012802 | B87: 一般行政管理事务 | C87: 30
A88: 2012804 | B88: 参政议政 | C88: 51
A89: 20129 | B89: 群众团体事务 | C89: 740
A90: 2012901 | B90: 行政运行 | C90: 473
A91: 2012902 | B91: 一般行政管理事务 | C91: 228
A92: 2012999 | B92: 其他群众团体事务支出 | C92: 39
A93: 20131 | B93: 党委办公厅（室）及相关机构事务 | C93: 2218
A94: 2013101 | B94: 行政运行 | C94: 1211
A95: 2013102 | B95: 一般行政管理事务 | C95: 13
A96: 2013103 | B96: 机关服务 | C96: 5
A97: 2013105 | B97: 专项业务 | C97: 987
A98: 2013150 | B98: 事业运行 | C98: 3
A99: 20132 | B99: 组织事务 | C99: 758
A100: 2013201 | B100: 行政运行 | C100: 555
A101: 2013202 | B101: 一般行政管理事务 | C101: 84
A102: 2013204 | B102: 公务员事务 | C102: 37
A103: 2013299 | B103: 其他组织事务支出 | C103: 82
A104: 20133 | B104: 宣传事务 | C104: 721
A105: 2013301 | B105: 行政运行 | C105: 424
A106: 2013302 | B106: 一般行政管理事务 | C106: 75
A107: 2013399 | B107: 其他宣传事务支出 | C107: 222
A108: 20134 | B108: 统战事务 | C108: 421
A109: 2013401 | B109: 行政运行 | C109: 230
A110: 2013402 | B110: 一般行政管理事务 | C110: 129
A111: 2013404 | B111: 宗教事务 | C111: 53
A112: 2013499 | B112: 其他统战事务支出 | C112: 10
A113: 20135 | B113: 对外联络事务 | C113: 84
A114: 2013501 | B114: 行政运行 | C114: 68
A115: 2013502 | B115: 一般行政管理事务 | C115: 16
A116: 20136 | B116: 其他共产党事务支出 | C116: 65
A117: 2013602 | B117: 一般行政管理事务 | C117: 25
A118: 2013699 | B118: 其他共产党事务支出 | C118: 40
A119: 20138 | B119: 市场监督管理事务 | C119: 5217
A120: 2013801 | B120: 行政运行 | C120: 3529
A121: 2013802 | B121: 一般行政管理事务 | C121: 243
A122: 2013804 | B122: 市场监督管理专项 | C122: 354
A123: 2013806 | B123: 消费者权益保护 | C123: 8
A124: 2013808 | B124: 信息化建设 | C124: 16
A125: 2013809 | B125: 市场监督管理技术支持 | C125: 60
A126: 2013812 | B126: 药品事务 | C126: 67
A127: 2013850 | B127: 事业运行 | C127: 188
A128: 2013899 | B128: 其他市场监督管理事务 | C128: 751
A129: 20199 | B129: 其他一般公共服务支出 | C129: 461
A130: 2019999 | B130: 其他一般公共服务支出 | C130: 461
A131: 203 | B131: 国防支出 | C131: 760
A132: 20306 | B132: 国防动员 | C132: 760
A133: 2030601 | B133: 兵役征集 | C133: 23
A134: 2030603 | B134: 人民防空 | C134: 300
A135: 2030607 | B135: 民兵 | C135: 437
A136: 204 | B136: 公共安全支出 | C136: 25996
A137: 20401 | B137: 武装警察部队 | C137: 487
A138: 2040199 | B138: 其他武装警察部队支出 | C138: 487
A139: 20402 | B139: 公安 | C139: 24413
A140: 2040201 | B140: 行政运行 | C140: 16009
A141: 2040219 | B141: 信息化建设 | C141: 100
A142: 2040220 | B142: 执法办案 | C142: 4037
A143: 2040221 | B143: 特别业务 | C143: 131
A144: 2040299 | B144: 其他公安支出 | C144: 4136
A145: 20403 | B145: 国家安全 | C145: 100
A146: 2040304 | B146: 安全业务 | C146: 100
A147: 20406 | B147: 司法 | C147: 775
A148: 2040601 | B148: 行政运行 | C148: 518
A149: 2040604 | B149: 基层司法业务 | C149: 12
A150: 2040605 | B150: 普法宣传 | C150: 10
A151: 2040607 | B151: 法律援助 | C151: 15
A152: 2040608 | B152: 国家统一法律职业资格考试 | C152: 2
A153: 2040609 | B153: 仲裁 | C153: 10
A154: 2040610 | B154: 社区矫正 | C154: 13
A155: 2040612 | B155: 法制建设 | C155: 53
A156: 2040699 | B156: 其他司法支出 | C156: 142
A157: 20409 | B157: 国家保密 | C157: 131
A158: 2040901 | B158: 行政运行 | C158: 67
A159: 2040902 | B159: 一般行政管理事务 | C159: 14
A160: 2040905 | B160: 保密管理 | C160: 50
A161: 20499 | B161: 其他公共安全支出 | C161: 90
A162: 2049901 | B162: 其他公共安全支出 | C162: 90
A163: 205 | B163: 教育支出 | C163: 28797
A164: 20501 | B164: 教育管理事务 | C164: 3530
A165: 2050101 | B165: 行政运行 | C165: 576
A166: 2050102 | B166: 一般行政管理事务 | C166: 793
A167: 2050199 | B167: 其他教育管理事务支出 | C167: 2162
A168: 20502 | B168: 普通教育 | C168: 10093
A169: 2050201 | B169: 学前教育 | C169: 76
A170: 2050204 | B170: 高中教育 | C170: 9927
A171: 2050299 | B171: 其他普通教育支出 | C171: 89
A172: 20503 | B172: 职业教育 | C172: 11746
A173: 2050302 | B173: 中专教育 | C173: 2085
A174: 2050303 | B174: 技校教育 | C174: 2569
A175: 2050305 | B175: 高等职业教育 | C175: 6978
A176: 2050399 | B176: 其他职业教育支出 | C176: 113
A177: 20508 | B177: 进修及培训 | C177: 3399
A178: 2050802 | B178: 干部教育 | C178: 3399
A179: 20599 | B179: 其他教育支出 | C179: 30
A180: 2059999 | B180: 其他教育支出 | C180: 30
A181: 206 | B181: 科学技术支出 | C181: 2738
A182: 20601 | B182: 科学技术管理事务 | C182: 231
A183: 2060101 | B183: 行政运行 | C183: 231
A184: 20604 | B184: 技术研究与开发 | C184: 444
A185: 2060402 | B185: 应用技术研究与开发 | C185: 303
A186: 2060403 | B186: 产业技术研究与开发 | C186: 141
A187: 20605 | B187: 科技条件与服务 | C187: 230
A188: 2060502 | B188: 技术创新服务体系 | C188: 230
A189: 20607 | B189: 科学技术普及 | C189: 167
A190: 2060701 | B190: 机构运行 | C190: 103
A191: 2060702 | B191: 科普活动 | C191: 64
A192: 20608 | B192: 科技交流与合作 | C192: 50
A193: 2060899 | B193: 其他科技交流与合作支出 | C193: 50
A194: 20609 | B194: 科技重大项目 | C194: 200
A195: 2060901 | B195: 科技重大专项 | C195: 200
A196: 20699 | B196: 其他科学技术支出 | C196: 1415
A197: 2069901 | B197: 科技奖励 | C197: 1400
A198: 2069999 | B198: 其他科学技术支出 | C198: 15
A199: 207 | B199: 文化旅游体育与传媒支出 | C199: 8214
A200: 20701 | B200: 文化和旅游 | C200: 3134
... 353 more rows

Sheet 5、一般债务限额
A1: 附表5
A2: 全市2019年地方政府一般债务余额表
A3: 单位：万元
A4: 地 区 | B4: 一般债务
B5: 余额 | C5: 限额
A6: 随州市 | B6: =SUM(B7:B10) -> 792,973 | C6: =SUM(C7:C10) -> 912,174
A7: 随州市本级 | B7: 172,487 | C7: 208,531
A8: 曾都区 | B8: 151,349 | C8: 171,531
A9: 随县 | B9: 198,113 | C9: 246,453
A10: 广水市 | B10: 271,024 | C10: 285,659
A11: 2019年财政厅核定我市政府债务限额为1417445万元，（其中:一般债务限额912174万元、专项债务限额505271万元），比上年新增债务限额157087万元（其中:一般债务限额92890万元、专项债务限额64197万元）。 2019年新增地方政府债券141833万元，具体情况如下：一是发行政府债券141833万元，其中:一般债券62233万元，专项债券79600万元，债券资金主要围绕“补短板”三年行动计划、生态修复等重大工程和公路、棚户区改造、土地储备等关系全市发展大局的重点项目建设安排使用。

Sheet 6、全市政府基金收入
A1: 附表6
A2: 全市2019年政府性基金预算收入执行情况表
C3: 单位：万元
A4: 科目编码 | B4: 科目名称 | C4: 金额
A5: 10301 | B5: 政府性基金收入 | C5: 277,647
A6: 1030148 | B6: 国有土地使用权出让收入 | C6: 254,168
A7: 103014801 | B7: 土地出让价款收入 | C7: 252,021
A8: 103014802 | B8: 补缴的土地价款 | C8: 1,137
A9: 103014803 | B9: 划拨土地收入 | C9: 233
A10: 103014898 | B10: 缴纳新增建设用地土地有偿使用费 | C10: -2,293
A11: 103014899 | B11: 其他土地出让收入 | C11: 3,071
A12: 1030156 | B12: 城市基础设施配套费收入 | C12: 20,222
A13: 1030178 | B13: 污水处理费收入 | C13: 3,257

Sheet 7、全市政府基金支出
A1: 附表7
A2: 全市2019年政府性基金预算支出执行情况表
C3: 单位：万元
A4: 科目编码 | B4: 科目名称 | C4: 金额
B5: 政府性基金预算支出合计 | C5: =SUM(C6:C15) -> 376,518
A6: 207 | B6: 一、文化旅游体育与传媒支出 | C6: 293
A7: 208 | B7: 二、社会保障和就业支出 | C7: 10904
A8: 211 | B8: 三、节能环保支出 | C8: 0
A9: 212 | B9: 四、城乡社区支出 | C9: 329489
A10: 213 | B10: 五、农林水支出 | C10: 2633
A11: 214 | B11: 六、交通运输支出 | C11: 0
A12: 215 | B12: 七、资源勘探信息等支出 | C12: 0
A13: 229 | B13: 八、其他支出 | C13: 18095
A14: 232 | B14: 九、债务付息支出 | C14: 15022
A15: 233 | B15: 十、债务发行费支出 | C15: 82

Sheet 8、本级政府基金收入
A1: 附表8
A2: 市本级2019年政府性基金预算收入执行情况表
C3: 单位：万元
A4: 科目编码 | B4: 科目名称 | C4: 金额
A5: 10301 | B5: 政府性基金收入 | C5: 168995
A6: 1030148 | B6: 国有土地使用权出让收入 | C6: 159971
A7: 103014801 | B7: 土地出让价款收入 | C7: 160655
A8: 103014802 | B8: 补缴的土地价款 | C8: 1137
A9: 103014803 | B9: 划拨土地收入
A10: 103014898 | B10: 缴纳新增建设用地土地有偿使用费 | C10: -1820
A11: 103014899 | B11: 其他土地出让收入
A12: 1030156 | B12: 城市基础设施配套费收入 | C12: 7010
A13: 1030178 | B13: 污水处理费收入 | C13: 2013

Sheet 9、本级政府基金支出
A1: 附表9
A2: 市本级2019年政府性基金预算支出执行情况表
C3: 单位：万元
A4: 科目编码 | B4: 科目名称 | C4: 金额
B5: 市本级政府性基金预算支出合计 | C5: 215832
A6: 207 | B6: 文化旅游体育与传媒支出 | C6: 150
A7: 20709 | B7: 旅游发展基金支出 | C7: 150
A8: 2070904 | B8: 地方旅游开发项目补助 | C8: 150
A9: 208 | B9: 社会保障和就业支出 | C9: 155
A10: 20822 | B10: 大中型水库移民后期扶持基金支出 | C10: 155
A11: 2082201 | B11: 移民补助 | C11: 155
A12: 212 | B12: 城乡社区支出 | C12: 206848
A13: 21208 | B13: 国有土地使用权出让收入及对应专项债务收入安排的支出 | C13: 149319
A14: 2120801 | B14: 征地和拆迁补偿支出 | C14: 61452
A15: 2120803 | B15: 城市建设支出 | C15: 47029
A16: 2120805 | B16: 补助被征地农民支出 | C16: 3883
A17: 2120806 | B17: 土地出让业务支出 | C17: 1224
A18: 2120807 | B18: 廉租住房支出 | C18: 2568
A19: 2120809 | B19: 支付破产或改制企业职工安置费 | C19: 1964
A20: 2120899 | B20: 其他国有土地使用权出让收入安排的支出 | C20: 31199
A21: 21213 | B21: 城市基础设施配套费安排的支出 | C21: 4127
A22: 2121301 | B22: 城市公共设施 | C22: 1561
A23: 2121302 | B23: 城市环境卫生 | C23: 1261
A24: 2121303 | B24: 公有房屋 | C24: 20
A25: 2121399 | B25: 其他城市基础设施配套费安排的支出 | C25: 1285
A26: 21214 | B26: 污水处理费安排的支出 | C26: 2403
A27: 2121401 | B27: 污水处理设施建设和运营 | C27: 1073
A28: 2121499 | B28: 其他污水处理费安排的支出 | C28: 1330
A29: 21215 | B29: 土地储备专项债券收入安排的支出 | C29: 20000
A30: 2121599 | B30: 其他土地储备专项债券收入安排的支出 | C30: 20000
A31: 21216 | B31: 棚户区改造专项债券收入安排的支出 | C31: 31000
A32: 2121699 | B32: 其他棚户区改造专项债券收入安排的支出 | C32: 31000
A33: 213 | B33: 农林水支出 | C33: 19
A34: 21367 | B34: 三峡水库库区基金支出 | C34: 19
A35: 2136701 | B35: 基础设施建设和经济发展 | C35: 19
A36: 229 | B36: 其他支出 | C36: 3061
A37: 22904 | B37: 其他政府性基金及对应专项债务收入安排的支出 | C37: 407
A38: 2290401 | B38: 其他政府性基金安排的支出 | C38: 407
A39: 22960 | B39: 彩票公益金安排的支出 | C39: 2654
A40: 2296002 | B40: 用于社会福利的彩票公益金支出 | C40: 1600
A41: 2296003 | B41: 用于体育事业的彩票公益金支出 | C41: 846
A42: 2296005 | B42: 用于红十字事业的彩票公益金支出 | C42: 5
A43: 2296006 | B43: 用于残疾人事业的彩票公益金支出 | C43: 203
A44: 232 | B44: 债务付息支出 | C44: 5542
A45: 23204 | B45: 地方政府专项债务付息支出 | C45: 5542
A46: 2320411 | B46: 国有土地使用权出让金债务付息支出 | C46: 5003
A47: 2320433 | B47: 棚户区改造专项债券付息支出 | C47: 539
A48: 233 | B48: 债务发行费用支出 | C48: 56
A49: 23304 | B49: 地方政府专项债务发行费用支出 | C49: 56
A50: 2330431 | B50: 土地储备专项债券发行费用支出 | C50: 22
A51: 2330433 | B51: 棚户区改造专项债券发行费用支出 | C51: 34

Sheet 10、专项债务限额
A1: 附表10
A2: 全市2019年地方政府专项债务余额情况表
A3: 单位：万元
A4: 地 区 | B4: 专项债务
B5: 余额 | C5: 限额
A6: 随州市 | B6: =SUM(B7:B10) -> 485,964 | C6: =SUM(C7:C10) -> 505,271
A7: 随州市本级 | B7: 210,504 | C7: 212,822
A8: 曾都区 | B8: 57,087 | C8: 57,536
A9: 随县 | B9: 101,436 | C9: 117,639
A10: 广水市 | B10: 116,937 | C10: 117,274
A11: 2019年财政厅核定我市政府债务限额为1417445万元，（其中:一般债务限额912174万元、专项债务限额505271万元），比上年新增债务限额157087万元（其中:一般债务限额92890万元、专项债务限额64197万元）。 2019年新增地方政府债券141833万元，具体情况如下：一是发行政府债券141833万元，其中:一般债券62233万元，专项债券79600万元，债券资金主要围绕“补短板”三年行动计划、生态修复等重大工程和公路、棚户区改造、土地储备等关系全市发展大局的重点项目建设安排使用。

Sheet 11、全市社保基金收入
A1: 附表11
A2: 全市2019年社会保险基金预算收入执行情况表
C3: 单位：万元
A4: 收入科目 | B4: 收入项目 | C4: 预算数
B5: 全市社会保险基金收入合计 | C5: 689868
A6: 10201 | B6: 一、企业职工基本养老保险基金收入 | C6: 252388
A7: 10202 | B7: 二、失业保险基金收入 | C7: 2891
A8: 10203 | B8: 三、城镇职工基本医疗保险基金收入 | C8: 66292
A9: 10204 | B9: 四、工伤保险基金收入 | C9: 2085
A10: 10205 | B10: 五、生育保险基金收入 | C10: 1416
A11: 10210 | B11: 六、城乡居民基本养老保险基金收入 | C11: 92583
A12: 10211 | B12: 七、机关事业单位基本养老保险基金收入 | C12: 130286
A13: 10212 | B13: 八、城乡居民基本医疗保险基金收入 | C13: 141927

Sheet 12、全市社保基金支出
A1: 附表12
A2: 全市2019年社会保险基金预算支出执行情况表
C3: 单位：万元
A4: 支出科目 | B4: 支出项目 | C4: 预算数
B5: 全市社会保险基金支出合计 | C5: 630715
A6: 20901 | B6: 一、企业职工基本养老保险基金支出 | C6: 259055
A7: 20902 | B7: 二、失业保险基金支出 | C7: 2336
A8: 20903 | B8: 三、城镇职工基本医疗保险基金支出 | C8: 51784
A9: 20904 | B9: 四、工伤保险基金支出 | C9: 1879
A10: 20905 | B10: 五、生育保险基金支出 | C10: 2240
A11: 20910 | B11: 六、城乡居民基本养老保险基金支出 | C11: 51844
A12: 20911 | B12: 七、机关事业单位基本养老保险基金支出 | C12: 123498
A13: 20912 | B13: 八、城乡居民基本医疗保险基金支出 | C13: 138079

Sheet 13、本级社保基金预算收入
A1: 附表13
A2: 市本级2019年社会保险基金预算收入执行情况表
C3: 单位：万元
A4: 收入科目 | B4: 收入项目 | C4: 预算数
B5: 市本级社会保险基金收入合计 | C5: =C6+C10+C14+C18+C22+C30 -> 91857
A6: 10201 | B6: 一、企业职工基本养老保险基金收入 | C6: =C7+C8+C9 -> 44189
A7: 1020101 | B7: 其中：企业职工基本养老保险保险费收入 | C7: 32188
A8: 1020102 | B8: 企业职工基本养老保险基金财政补贴收入 | C8: 9841
A9: 1020103 | B9: 企业职工基本养老保险基金利息收入 | C9: 2160
A10: 10202 | B10: 二、失业保险基金收入 | C10: =C11+C12+C13 -> 1333
A11: 1200201 | B11: 其中：失业保险费收入 | C11: 1226
A12: 1200202 | B12: 失业保险基金财政补贴收入
A13: 1200203 | B13: 失业保险基金利息收入 | C13: 107
A14: 10203 | B14: 三、城镇职工基本医疗保险基金收入 | C14: =C15+C16+C17 -> 24225
A15: 1020301 | B15: 其中：城镇职工基本医疗保险费收入 | C15: 23775
A16: 1020302 | B16: 城镇职工基本医疗保险基金 财政补贴收入
A17: 1020303 | B17: 城镇职工基本医疗保险基金利息收入 | C17: 450
A18: 10204 | B18: 四、工伤保险基金收入 | C18: 701
A19: 1020401 | B19: 其中：工伤保险费收入 | C19: 701
A20: 1020402 | B20: 工伤保险基金 财政补贴收入
A21: 1020403 | B21: 工伤保险基金利息收入
A22: 10205 | B22: 五、生育保险基金收入 | C22: 816
A23: 1020501 | B23: 其中：生育保险费收入 | C23: 816
A24: 1020502 | B24: 生育保险基金财政补贴收入
A25: 1020503 | B25: 生育保险基金利息收入
A26: 10210 | B26: 六、城乡居民基本养老保险基金收入
A27: 1021001 | B27: 其中：城乡居民基本养老保险费收入
A28: 1021002 | B28: 城乡居民基本养老保险基金财政补贴收入
A29: 1021003 | B29: 城乡居民基本养老保险基金利息收入
A30: 10211 | B30: 七、机关事业单位基本养老保险基金收入 | C30: =C31+C32+C33 -> 20593
A31: 1021101 | B31: 其中：机关事业单位基本养老保险费收入 | C31: 19309
A32: 1021102 | B32: 机关事业单位基本养老保险基金财政补贴收入 | C32: 1190
A33: 1021103 | B33: 机关事业单位基本养老保险基金利息收入 | C33: 94
A34: 10212 | B34: 八、城乡居民基本医疗保险基金收入
A35: 1021201 | B35: 其中：城乡居民基本医疗保险费收入
A36: 1021202 | B36: 城乡居民基本医疗保险基金 财政补贴收入
A37: 1021203 | B37: 城乡居民基本医疗保险基金利息收入

Sheet 14、本级社保基金预算支出
A1: 附表14
A2: 市本级2019年社会保险基金预算支出执行情况表
C3: 单位：万元
A4: 支出科目 | B4: 支出项目 | C4: 预算数
B5: 市本级社会保险基金支出合计 | C5: =C6+C24+C21+C12+C27+C15+C9+C18 -> 82485
A6: 20901 | B6: 一、企业职工基本养老保险基金支出 | C6: =SUM(C7:C8) -> 37244
A7: 2090101 | B7: 其中：基本养老金支出 | C7: 37244
A8: 2090199 | B8: 其他基本养老保险基金支出 | C8: 0
A9: 20902 | B9: 二、失业保险基金支出 | C9: =SUM(C10:C11) -> 1274
A10: 2090201 | B10: 其中：失业保险金支出 | C10: 743
A11: 2090299 | B11: 其他失业保险基金支出 | C11: 531
A12: 20903 | B12: 三、城镇职工基本医疗保险基金支出 | C12: =SUM(C13:C14) -> 17725
A13: 2090301 | B13: 其中：基本医疗保险待遇支出 | C13: 17128
A14: 2090399 | B14: 其他基本医疗保险基金支出 | C14: 597
A15: 20904 | B15: 四、工伤保险基金支出 | C15: =SUM(C16:C17) -> 985
A16: 2090401 | B16: 其中：工伤保险待遇支出 | C16: 985
A17: 2090499 | B17: 其他工伤保险基金支出
A18: 20905 | B18: 五、生育保险基金支出 | C18: =SUM(C19:C20) -> 1594
A19: 2090501 | B19: 其中：生育保险待遇支出 | C19: 1594
A20: 2090599 | B20: 其他生育保险基金支出
A21: 20910 | B21: 六、城乡居民基本养老保险基金支出 | C21: =SUM(C22:C23) -> 0
A22: 2091001 | B22: 其中：基本养老金支出
A23: 2091099 | B23: 其他基本养老保险基金支出
A24: 20911 | B24: 七、机关事业单位基本养老保险基金支出 | C24: =SUM(C25:C26) -> 23663
A25: 2091101 | B25: 其中：基本养老金支出 | C25: 23663
A26: 2091199 | B26: 其他基本养老保险基金支出
A27: 20912 | B27: 八、城乡居民基本医疗保险基金支出 | C27: =SUM(C28:C29) -> 0
A28: 2091201 | B28: 其中：基本医疗保险待遇支出
A29: 2091299 | B29: 其他基本养老保险基金支出

Sheet 15、全市国有资本经营预算收入
A1: 附表15
A2: 全市2019年国有资本经营预算收入执行情况表
C3: 单位：万元
A4: 科目编码 | B4: 科目名称 | C4: 金额
A5: 1030601 | B5: 一、利润收入 | C5: 1100
A6: 1030602 | B6: 二、股利、股息收入
A7: 1030603 | B7: 三、产权转让收入
A8: 103060304 | B8: 国有股权、股份转让收入
A9: 1030604 | B9: 四、清算收入
A10: 1030698 | B10: 五、其他国有资本经营收入 | C10: 6335
B11: 市 级 国 有 资 本 经 营 收 入合计 | C11: 7435
A12: 11005 | B12: 国有资本经营预算转移支付收入 | C12: 0
B13: 收 入 总计 | C13: 7435

Sheet 16、全市国有资本经营预算支出
A1: 附表16
A2: 全市2019年国有资本经营预算支出执行情况表
C4: 单位：万元
A5: 科目编码 | B5: 科目名称 | C5: 金额
A6: 208 | B6: 一、社会保障和就业支出
A7: 223 | B7: 二、国有资本经营预算支出 | C7: 6286
B8: 市 级 国 有 资 本 经 营 支 出合计 | C8: 6286
A9: 230 | B9: 转移性支出 | C9: 596
B10: 支出总计 | C10: 6882

Sheet 17、本级国有资本预算收入
A1: 附表17
A2: 市本级2019年国有资本经营预算收入执行情况表
C3: 单位：万元
A4: 科目编码 | B4: 科目名称 | C4: 金额
A5: 10306 | B5: 国有资本经营预算收入 | C5: =C6 -> 6,255
A6: 103060198 | B6: 其他国有资本经营预算企业利润收入 | C6: 6,255

Sheet 18、本级国有资本经营预算支出
A1: 附表18
A2: 市本级2019年国有资本经营预算支出执行情况表
C4: 单位：万元
A5: 科目编码 | B5: 科目名称 | C5: 金额
B6: 支出合计 | C6: =C7+C10 -> 5,702
A7: 223 | B7: 国有资本经营预算支出 | C7: =C8 -> 5,106
A8: 22399 | B8: 其他国有资本经营预算支出 | C8: =C9 -> 5,106
A9: 2239901 | B9: 其他国有资本经营预算支出 | C9: 5,106
A10: 230 | B10: 转移性支出 | C10: =C11 -> 596
A11: 23008 | B11: 调出资金 | C11: =C12 -> 596
A12: 2300803 | B12: 国有资本经营预算调出资金 | C12: 596
B13: 结余 | C13: 553
